[Event "Wuerttemberg Rapid Teams 2024"]
[Site "B?blingen, Germany"]
[Date "2024.04.13"]
[Round "7.34"]
[White "Bueble, Joschua"]
[Black "Lessmeister, Patrick"]
[Result "0-1"]
[ECO "A57"]
[WhiteElo "1972"]
[BlackElo "1834"]
[Annotator "TA"]
[PlyCount "88"]
[EventDate "2024.04.13"]
[EventType "team-tourn"]
[SourceTitle "playchess.com"]
[Source "ChessBase"]
[SourceQuality "1"]
[TimeControl "900+5"]

{[%evp 11,88,30,117,95,143,108,116,79,80,78,78,89,125,111,119,107,124,97,102,62,79,71,94,74,73,0,42,0,24,-41,0,0,16,0,16,22,75,9,9,16,11,9,197,-177,-180,-200,0,-334,-342,-324,-275,-266,-132,-151,0,0,0,0,0,0,0,0,0,-1060,-895,-5043,-2125,-2727,-1160,-29990,-29991,-29991,-29992,-29992,-29993,-29993,-29993,-29994,-29995]} 1. d4 {[%emt 0:00:01]} Nf6 {[%emt 0:00:03]} 2. c4 {[%emt 0:00:06]} c5 {[%emt 0:00:02]} 3. d5 {[%emt 0:00:00]} b5 {[%emt 0:00:01]} 4. cxb5 {[%emt 0:00:01]} a6 {[%emt 0:00:01]} 5. f3 {[%emt 0:00:01]} axb5 {[%emt 0:00:33]} 6. e4 {[%emt 0:00:01]} d6 {[%emt 0:00:25]} (6... Qa5+ $11 {remains equal.} 7. b4 cxb4 (7... Qxb4+ 8. Bd2 $11)) 7. Bxb5+ $16 {[%emt 0:00:04]} Nbd7 {[%emt 0:00:44]} (7... Bd7 $142) 8. Ne2 {[%emt 0:00:08]} g6 {[%emt 0:00:08]} 9. Nec3 {[%emt 0:00:07] White is better.} Bg7 {[%emt 0:00:46]} 10. a4 {[%emt 0:00:42]} O-O {[%emt 0:00:09]} 11. O-O {[%emt 0:01:09]} Ba6 {[%emt 0:02:00]} 12. Na3 {[%emt 0:00:30]} Ne8 {[%emt 0:00:53]} 13. Qc2 {[%emt 0:00:39]} Nc7 {[%emt 0:00:21]} 14. Be3 {[%emt 0:00:47]} f5 {[%emt 0:01:41]} 15. Rab1 {[%emt 0:02:20]} fxe4 {[%emt 0:00:32]} 16. fxe4 {[%emt 0:00:31]} Rxf1+ {[%emt 0:01:29]} 17. Rxf1 {[%emt 0:01:47]} Nxb5 {[%emt 0:01:21]} 18. Naxb5 {[%emt 0:00:00]} (18. Ncxb5 $16 Ne5 19. b3) 18... Ne5 {[%emt 0:00:13]} 19. b3 {[%emt 0:00:10]} Rc8 {[%emt 0:00:34]} 20. Bf4 {[%emt 0:00:46]} (20. Kh1 $11) 20... Qd7 {[%emt 0:00:23][%mdl 1024] Black has compensation.} 21. Qe2 {[%emt 0:01:54]} Rb8 {[%emt 0:00:57]} 22. Qe3 {[%emt 0:01:20]} Rc8 {[%emt 0:01:11]} 23. h3 {[%emt 0:00:15]} c4 {[%emt 0:00:41] [#]} (23... Rf8 $11 {keeps the balance.}) 24. Bxe5 {[%emt 0:00:11]} (24. b4 $1 $16 {Black must now prevent Na7.} Bxb5 25. Nxb5) 24... Bxe5 $11 {[%emt 0:00:03]} 25. b4 {[%emt 0:00:07]} Bxb5 {[%emt 0:00:13]} 26. Nxb5 {[%emt 0:00:14] Na7 is the strong threat.} c3 $2 {[%emt 0:00:29] [#]} (26... Ra8 $11) 27. Rc1 $4 {[%emt 0:00:18][%mdl 8192]} (27. Na7 $1 $18 {[%cal Ra7c6]}) 27... Rc4 $19 {[%emt 0:00:01][%cal Od7c8]} 28. Qd3 {[%emt 0:00:54]} Qc8 {[%emt 0:00:42]} (28... Rxb4 $19 {...Qc8 would now be deadly.} 29. Nxc3 Qa7+ 30. Kh1 Rb3) 29. a5 $2 {[%emt 0:00:24][%mdl 8192]} (29. Na7 $1 $11 Qa6 30. Kf1) 29... Rxb4 {[%emt 0:00:16] Hoping for ...Qc5+.} 30. Na3 {[%emt 0:00:26] White is weak on the dark squares} Qc5+ {[%emt 0:00:09]} 31. Kh1 {[%emt 0:00:02]} Rd4 {[%emt 0:00:07]} ({Less strong is} 31... Qxa5 32. Nc4 Rxc4 33. Qxc4 $11) (31... Ra4 $19 {is more deadly.} 32. Nc2 Rxa5) 32. Qb5 $17 {[%emt 0:00:34]} Qxa3 $2 $40 {[%emt 0:00:11][%mdl 128] Black attacks.} (32... Rxe4 $17 33. Qxc5 dxc5) 33. Qe8+ $11 {[%emt 0:00:01]} Kg7 {[%emt 0:00:05][%cal Ra3c1]} 34. Qxe7+ {[%emt 0:00:06]} Kh6 {[%emt 0:00:11][%cal Ra3c1]} 35. Qh4+ {[%emt 0:00:27]} Kg7 {[%emt 0:00:02]} 36. Qe7+ {[%emt 0:00:02]} Kh6 {[%emt 0:00:08][%cal Ra3c1]} 37. Qf8+ $2 {[%emt 0:00:28][%mdl 8192]} (37. Qh4+ $11 Kg7 38. Qe7+) 37... Bg7 $19 {[%emt 0:00:08]} 38. Qf4+ {[%emt 0:00:02]} g5 {[%emt 0:00:05]} 39. Qe3 {[%emt 0:00:04]} Be5 {[%emt 0:00:05]} (39... Rxe4 $142 40. Qg1 Qxa5) 40. h4 {[%emt 0:00:03]} Bf4 $1 {[%emt 0:00:04] Black mates.} ({Worse is} 40... Qxa5 41. Qxg5#) 41. hxg5+ {[%emt 0:00:01]} Kxg5 {[%emt 0:00:01]} 42. Qxd4 {[%emt 0:00:08]} Qxc1+ {[%emt 0:00:02]} 43. Qg1 {[%emt 0:00:01]} Qxg1+ {[%emt 0:00:02]} 44. Kxg1 {[%emt 0:00:00]} c2 {[%emt 0:00:02] Weighted Error Value: White=1.07/Black=0.53.  Loses game:     	White=2     	Black=1      Missed win:     	White=1     	Black=1      Mistake:       	White=3     	Black=4      Inaccurate:     	White=4     	Black=3      OK:         	White=3     	Black=8      Best:        	White=5     	Black=4} 0-1

[Event "Wuerttemberg Rapid Teams 2024"]
[Site "B?blingen, Germany"]
[Date "2024.04.13"]
[Round "7.35"]
[White "Schraegle, Thorsten"]
[Black "Mi Plaza, Luis Leo Manuel"]
[Result "0-1"]
[ECO "A17"]
[WhiteElo "1918"]
[BlackElo "1413"]
[Annotator "TA"]
[PlyCount "128"]
[EventDate "2024.04.13"]
[EventType "team-tourn"]
[SourceTitle "playchess.com"]
[Source "ChessBase"]
[SourceQuality "1"]
[TimeControl "900+5"]

{[%evp 12,127,-9,-22,-24,-14,0,-2,46,54,36,0,0,0,-2,-212,-234,-478,-474,-471,-443,-514,-524,-528,-512,-505,-489,-472,-492,-473,-421,-441,-427,-419,-424,-424,-434,-439,-436,-469,-451,-480,-475,-468,-429,-479,-454,-477,-460,-485,-485,-551,-478,-459,0,-553,-557,-605,-601,-594,-587,-653,-655,-678,-678,-892,-885,-887,-858,-845,-768,-1176,-1179,-984,-956,-5134,-5072,-29971,-6420,-29979,-11619,-29989,-29990,-29990,-29986,-29987,-29988,-29991,-29987,-29987,-29988,-29988,-29989,-29989,-29989,-29989,-29990,-29991,-29992,-29992,-29993,-29993,-29994,-29994,-29995,-29995,-29995,-29995,-29996,-29997,-29998,-29999,-29998,-29998,-29998,-29998,-29999,-29999]} 1. c4 {[%emt 0:00:01]} e6 {[%emt 0:00:01]} 2. Nc3 {[%emt 0:00:02]} d5 {[%emt 0:00:01]} 3. e3 {[%emt 0:00:07]} Nf6 {[%emt 0:00:11]} 4. cxd5 {[%emt 0:00:10]} exd5 {[%emt 0:00:06]} 5. Nge2 {[%emt 0:00:14]} c6 {[%emt 0:00:23]} 6. g3 {[%emt 0:00:01]} Bd6 {[%emt 0:00:11]} 7. Bg2 {[%emt 0:00:01]} O-O {[%emt 0:00:03]} 8. O-O {[%emt 0:00:04]} Bf5 {[%emt 0:00:17]} 9. d3 {[%emt 0:00:20]} Nbd7 {[%emt 0:00:06]} (9... Re8 $11) 10. e4 $14 {[%emt 0:00:17]} Be6 {[%emt 0:01:03]} 11. f4 {[%emt 0:00:22] [#] Hoping for f5.} dxe4 {[%emt 0:00:24]} 12. dxe4 {[%emt 0:00:04]} Bc5+ {[%emt 0:00:02]} 13. Nd4 $2 {[%emt 0:00:33] Black continues to play with concentration.} (13. Kh1 $11 {and White is okay.}) 13... Qb6 $19 {[%emt 0:01:11]} 14. Be3 {[%emt 0:00:25]} (14. Na4 {was called for.} Bxd4+ 15. Kh1) 14... Ng4 {[%emt 0:00:10]} ({Weaker is} 14... Qxb2 15. Na4 Qa3 16. Re1 $15) 15. Na4 {[%emt 0:00:17]} Nxe3 {[%emt 0:00:07]} 16. Nxb6 {[%emt 0:00:04]} Nxd1 {[%emt 0:00:01]} 17. Nxd7 {[%emt 0:00:15]} Bxd4+ {[%emt 0:00:03] A strong pair of Bishops.} 18. Kh1 {[%emt 0:00:19]} Bxd7 {[%emt 0:00:19]} 19. Raxd1 {[%emt 0:00:04]} c5 {[%emt 0:00:01]} 20. e5 {[%emt 0:00:06]} Bc6 {[%emt 0:00:02]} 21. Bxc6 bxc6 {[%emt 0:00:01]} 22. b4 {[%emt 0:00:16]} Rfd8 {[%emt 0:00:11]} 23. bxc5 {[%emt 0:00:06]} Bxc5 {[%emt 0:00:00]} 24. Rc1 {[%emt 0:00:01]} Rd5 {[%emt 0:00:01]} 25. Rc2 {[%emt 0:00:10]} Rad8 {[%emt 0:00:01]} 26. Rfc1 {[%emt 0:00:25]} Rd1+ {[%emt 0:00:02]} 27. Rxd1 Rxd1+ {[%emt 0:00:01][%mdl 4096] Endgame. KRB-KR} 28. Kg2 {[%emt 0:00:04]} Rd5 {[%emt 0:00:04]} 29. Kf3 {[%emt 0:00:02]} Kf8 {[%emt 0:00:07]} 30. Ke4 {[%emt 0:00:02]} Ke7 {[%emt 0:00:09]} 31. f5 {[%emt 0:00:15]} Rd4+ {[%emt 0:00:07]} 32. Kf3 {[%emt 0:00:13]} Rd5 {[%emt 0:00:01]} 33. Ke4 {[%emt 0:00:02]} Kd7 {[%emt 0:00:14]} 34. g4 {[%emt 0:00:05]} Rd4+ {[%emt 0:00:02]} 35. Kf3 {[%emt 0:00:05]} Bb6 {[%emt 0:00:01]} 36. Re2 {[%emt 0:00:11]} c5 {[%emt 0:00:02]} 37. e6+ {[%emt 0:00:05]} fxe6 {[%emt 0:00:01]} 38. fxe6+ {[%emt 0:00:01]} Ke7 {[%emt 0:00:00]} 39. h4 {[%emt 0:00:27]} Rd6 {[%emt 0:00:01]} 40. g5 {[%emt 0:01:00]} Rxe6 {[%emt 0:00:03]} 41. Rd2 {[%emt 0:00:03]} c4 {[%emt 0:00:14]} 42. Rc2 {[%emt 0:00:03]} Re3+ {[%emt 0:00:01]} 43. Kg2 {[%emt 0:00:07]} c3 {[%emt 0:00:01]} 44. Kf1 {[%emt 0:00:03]} Kd6 {[%emt 0:00:05]} 45. h5 {[%emt 0:00:26]} Ke5 {[%emt 0:00:04] ( -> ...Ke4)} 46. Re2 {[%emt 0:00:08]} Rxe2 {[%emt 0:00:07] Black mates.} 47. Kxe2 {[%emt 0:00:03] KB-K3P} Kf5 {[%emt 0:00:00]} 48. h6 {[%emt 0:00:08]} gxh6 {[%emt 0:00:02]} (48... Kxg5 $2 {loses.} 49. hxg7 h6 50. g8=Q+ $18 (50. g8=R+ Kf4 $14)) 49. gxh6 {[%emt 0:00:02] KB-KPP} Kg6 {[%emt 0:00:00]} 50. Kd3 {[%emt 0:00:00] [#]} Bd4 $1 {[%emt 0:00:01]} 51. Kc2 {[%emt 0:00:02]} (51. Ke2 Kxh6) 51... Kxh6 {[%emt 0:00:01] KB-KP} 52. Kc1 {[%emt 0:00:01]} Kg5 {[%emt 0:00:04]} 53. Kc2 {[%emt 0:00:00]} h5 {[%emt 0:00:01]} 54. Kc1 {[%emt 0:00:02]} h4 {[%emt 0:00:00]} 55. Kc2 {[%emt 0:00:01]} h3 {[%emt 0:00:00]} 56. Kc1 {[%emt 0:00:01]} h2 {[%emt 0:00:01]} 57. Kc2 {[%emt 0:00:00]} h1=Q {[%emt 0:00:03]} 58. Kd3 {[%emt 0:00:03]} Qd1+ {[%emt 0:00:02]} 59. Kc4 {[%emt 0:00:02]} c2 {[%emt 0:00:01]} 60. Kb5 {[%emt 0:00:03]} c1=Q {[%emt 0:00:02]} 61. Kb4 {[%emt 0:00:03]} Qb2+ {[%emt 0:00:03]} 62. Kc4 {[%emt 0:00:01]} Qc3+ {[%emt 0:00:02]} 63. Kd5 {[%emt 0:00:02]} Bg1+ {[%emt 0:00:02]} 64. Ke4 {[%emt 0:00:01]} Qdf3# {[%emt 0:00:08] Weighted Error Value: White=0.43/Black=0.23 (precise) .  Loses game:     	White=1     	---        Mistake:       	White=1     	Black=1      Inaccurate:     	White=1     	---        OK:         	White=8     	Black=17     Best:        	White=3     	Black=3} 0-1

[Event "Wuerttemberg Rapid Teams 2024"]
[Site "B?blingen, Germany"]
[Date "2024.04.13"]
[Round "7.40"]
[White "Merkel, Philip"]
[Black "Ameln, Till"]
[Result "1-0"]
[ECO "B13"]
[WhiteElo "1726"]
[BlackElo "1887"]
[Annotator "NA RC COMBH"]
[PlyCount "83"]
[EventDate "2024.04.13"]
[EventType "team-tourn"]
[SourceTitle "playchess.com"]
[Source "ChessBase"]
[SourceQuality "1"]
[TimeControl "900+5"]

1. e4 {[%emt 0:00:02]} c6 {[%emt 0:00:02]} 2. d4 {[%emt 0:00:01]} d5 {[%emt 0:00:02]} 3. exd5 {[%emt 0:00:02]} cxd5 {[%emt 0:00:02]} 4. Bd3 {[%emt 0:00:00]} Nc6 {[%emt 0:00:02]} 5. c3 {[%emt 0:00:01]} Nf6 {[%emt 0:00:13]} 6. Bf4 {[%emt 0:00:00]} Bg4 {[%emt 0:00:34]} 7. Qb3 {[%emt 0:00:01]} Qd7 {[%emt 0:00:56]} 8. Nd2 {[%emt 0:00:04]} e6 {[%emt 0:00:09]} 9. Ngf3 {[%emt 0:00:02]} Bxf3 {[%emt 0:00:23]} 10. Nxf3 {[%emt 0:00:02]} Be7 {[%emt 0:00:10]} 11. O-O {[%emt 0:00:04]} O-O {[%emt 0:00:03]} 12. Rfe1 {[%emt 0:00:30]} a6 {[%emt 0:00:06]} 13. a4 {[%emt 0:00:44]} Na5 {[%emt 0:00:11]} 14. Qc2 {[%emt 0:00:02]} Nc4 {[%emt 0:00:44]} 15. Ne5 {[%emt 0:00:48]} Nxe5 {[%emt 0:00:23]} 16. dxe5 {[%emt 0:00:02]} g6 {[%emt 0:00:32]} 17. exf6 {[%emt 0:00:09]} Bxf6 {[%emt 0:00:04]} 18. Be5 {[%emt 0:00:22]} Bxe5 {[%emt 0:00:06]} 19. Rxe5 {[%emt 0:00:01]} Rac8 {[%emt 0:00:10]} 20. Qd2 {[%emt 0:01:36]} Qd6 {[%emt 0:00:48]} 21. Re2 {[%emt 0:00:40]} Rfd8 {[%emt 0:01:28]} 22. Rd1 {[%emt 0:01:31]} d4 {[%emt 0:00:28]} 23. cxd4 {[%emt 0:00:40]} Qxd4 {[%emt 0:00:14]} 24. g3 {[%emt 0:04:16]} Qxd3 {[%emt 0:00:15]} 25. Qxd3 {[%emt 0:00:11]} Rxd3 {[%emt 0:00:02]} 26. Rxd3 {[%emt 0:00:02]} Rc1+ {[%emt 0:00:01]} 27. Kg2 {[%emt 0:00:01]} Rc4 {[%emt 0:00:18]} 28. b3 {[%emt 0:00:05]} Rc7 {[%emt 0:00:08]} 29. Red2 {[%emt 0:00:02]} b5 {[%emt 0:00:14]} 30. Rd7 {[%emt 0:00:03]} Rc3 {[%emt 0:00:10]} 31. axb5 {[%emt 0:00:06]} axb5 {[%emt 0:00:02]} 32. R2d3 {[%emt 0:00:27]} Rc5 {[%emt 0:00:14]} 33. Rb7 {[%emt 0:00:08]} Kg7 {[%emt 0:00:08]} 34. Rdd7 {[%emt 0:00:16]} Rf5 {[%emt 0:00:08]} 35. g4 {[%emt 0:00:05]} Rf4 {[%emt 0:00:05]} 36. Kg3 {[%emt 0:00:15]} e5 {[%emt 0:00:21]} 37. Rxb5 {[%emt 0:00:07]} Re4 {[%emt 0:00:34]} 38. f3 {[%emt 0:00:06]} Re3 {[%emt 0:00:04]} 39. Rbb7 {[%emt 0:00:03]} h5 {[%emt 0:00:24]} 40. Rxf7+ {[%emt 0:00:02]} Kh6 {[%emt 0:00:02]} 41. h4 {[%emt 0:00:33]} g5 {[%emt 0:00:21]} 42. Rb6# {[%emt 0:00:33]} 1-0

[Event "Wuerttemberg Rapid Teams 2024"]
[Site "B?blingen, Germany"]
[Date "2024.04.13"]
[Round "8.1"]
[White "Koelle, Tobias"]
[Black "Braeuning, Rudolf Wilhelm"]
[Result "0-1"]
[ECO "B22"]
[WhiteElo "2467"]
[BlackElo "2194"]
[Annotator "RC"]
[PlyCount "78"]
[EventDate "2024.04.13"]
[EventType "team-tourn"]
[SourceTitle "playchess.com"]
[Source "ChessBase"]
[SourceQuality "1"]
[TimeControl "900+5"]

1. e4 {[%emt 0:00:05]} c5 {[%emt 0:00:25]} 2. c3 {[%emt 0:00:02]} Nf6 {[%emt 0:00:01]} 3. e5 {[%emt 0:00:01]} Nd5 {[%emt 0:00:00]} 4. d4 {[%emt 0:00:02]} cxd4 {[%emt 0:00:03]} 5. Nf3 {[%emt 0:00:00]} Nc6 {[%emt 0:00:19]} 6. Bc4 {[%emt 0:00:02]} Nb6 {[%emt 0:00:06]} 7. Bb3 {[%emt 0:00:02]} d5 {[%emt 0:00:23]} 8. exd6 {[%emt 0:00:01]} Qxd6 {[%emt 0:00:03]} 9. O-O {[%emt 0:00:02]} Be6 {[%emt 0:00:40]} 10. Na3 {[%emt 0:00:09]} Bxb3 {[%emt 0:00:16]} 11. Qxb3 {[%emt 0:00:02]} e6 {[%emt 0:00:10]} 12. Rd1 {[%emt 0:00:07]} Be7 {[%emt 0:00:07]} 13. Nb5 {[%emt 0:00:04]} Qb8 {[%emt 0:00:19]} 14. g3 {[%emt 0:03:28]} Qc8 {[%emt 0:03:23]} 15. Bf4 {[%emt 0:00:45]} Nd5 {[%emt 0:00:03]} 16. Nd6+ {[%emt 0:00:20]} Bxd6 {[%emt 0:00:02]} 17. Bxd6 {[%emt 0:00:02]} Qd7 {[%emt 0:00:09]} 18. Bc5 {[%emt 0:01:00]} dxc3 {[%emt 0:01:45]} 19. bxc3 {[%emt 0:01:01]} Na5 {[%emt 0:00:20]} 20. Qa3 {[%emt 0:01:41]} Nc4 {[%emt 0:00:11]} 21. Qb3 {[%emt 0:00:03]} Na5 {[%emt 0:00:02]} 22. Qa3 {[%emt 0:00:01]} b6 {[%emt 0:03:41]} 23. Ne5 {[%emt 0:04:35]} Qb5 {[%emt 0:00:02]} 24. Bb4 {[%emt 0:02:01]} Nc4 {[%emt 0:02:37]} 25. Nxc4 {[%emt 0:00:03]} Qxc4 {[%emt 0:00:01]} 26. Rd4 {[%emt 0:00:09]} Qc6 {[%emt 0:00:16]} 27. Rad1 {[%emt 0:00:53]} a5 {[%emt 0:00:17]} 28. Bd6 {[%emt 0:00:14]} Nxc3 {[%emt 0:00:28]} 29. Re1 {[%emt 0:00:19]} Nb5 {[%emt 0:00:08]} 30. Qd3 {[%emt 0:00:06]} Nxd4 {[%emt 0:00:03]} 31. Qxd4 {[%emt 0:00:02]} O-O-O {[%emt 0:00:03]} 32. Qxg7 {[%emt 0:00:15]} Qxd6 {[%emt 0:00:08]} 33. Qxf7 {[%emt 0:00:02]} Rd7 {[%emt 0:00:30]} 34. Qf6 {[%emt 0:00:00]} Rf8 {[%emt 0:00:06]} 35. Qb2 {[%emt 0:00:08]} Kb7 {[%emt 0:00:04]} 36. Qb3 {[%emt 0:00:06]} Qd5 {[%emt 0:00:05]} 37. Qa3 {[%emt 0:00:08]} Rxf2 {[%emt 0:00:15]} 38. Kxf2 {[%emt 0:00:07]} Qd2+ {[%emt 0:00:01]} 39. Re2 {[%emt 0:00:02]} Rf7+ {[%emt 0:00:01]} 0-1

[Event "Wuerttemberg Rapid Teams 2024"]
[Site "B?blingen, Germany"]
[Date "2024.04.13"]
[Round "8.2"]
[White "Deuer, Marius"]
[Black "Hartmann, Martin"]
[Result "1-0"]
[ECO "A62"]
[WhiteElo "2439"]
[BlackElo "2158"]
[Annotator "RC"]
[PlyCount "151"]
[EventDate "2024.04.13"]
[EventType "team-tourn"]
[SourceTitle "playchess.com"]
[Source "ChessBase"]
[SourceQuality "1"]
[TimeControl "900+5"]

1. d4 {[%emt 0:00:03]} Nf6 {[%emt 0:00:08]} 2. c4 {[%emt 0:00:05]} e6 {[%emt 0:00:02]} 3. Nc3 {[%emt 0:00:02]} c5 {[%emt 0:00:02]} 4. d5 {[%emt 0:00:10]} exd5 {[%emt 0:00:02]} 5. cxd5 {[%emt 0:00:01]} d6 {[%emt 0:00:01]} 6. g3 {[%emt 0:00:21]} g6 {[%emt 0:00:04]} 7. Bg2 {[%emt 0:00:01]} Bg7 {[%emt 0:00:01]} 8. Nf3 {[%emt 0:00:01]} O-O {[%emt 0:00:03]} 9. O-O {[%emt 0:00:03]} Na6 {[%emt 0:00:04]} 10. Bf4 {[%emt 0:00:12]} Nc7 {[%emt 0:00:12]} 11. e4 {[%emt 0:00:12]} Re8 {[%emt 0:00:51]} 12. Re1 {[%emt 0:00:23]} Bg4 {[%emt 0:00:12]} 13. h3 {[%emt 0:01:10]} Bxf3 {[%emt 0:00:04]} 14. Bxf3 {[%emt 0:00:09]} Qd7 {[%emt 0:00:47]} 15. a4 {[%emt 0:02:18]} a6 {[%emt 0:00:53]} 16. e5 {[%emt 0:00:30]} dxe5 {[%emt 0:00:21]} 17. Bxe5 {[%emt 0:00:02]} Rad8 {[%emt 0:00:37]} 18. Qb3 {[%emt 0:00:29]} b5 {[%emt 0:05:28]} 19. Bxc7 {[%emt 0:01:50]} c4 {[%emt 0:00:50]} 20. Qb4 {[%emt 0:00:56]} Qxc7 {[%emt 0:00:03]} 21. axb5 {[%emt 0:00:02]} Rxe1+ {[%emt 0:00:28]} 22. Rxe1 {[%emt 0:00:02]} Bf8 {[%emt 0:00:02]} 23. b6 {[%emt 0:01:01]} Qxg3+ {[%emt 0:03:09]} 24. fxg3 {[%emt 0:00:02]} Bxb4 {[%emt 0:00:01]} 25. b7 {[%emt 0:02:24]} Bd6 {[%emt 0:00:08]} 26. Ra1 {[%emt 0:00:26]} Bxg3 {[%emt 0:01:12]} 27. Rxa6 {[%emt 0:00:06]} Nd7 {[%emt 0:00:02]} 28. Rc6 {[%emt 0:02:07]} Kf8 {[%emt 0:00:38]} 29. d6 {[%emt 0:00:28]} Ke8 {[%emt 0:00:24]} 30. Nd5 {[%emt 0:01:30]} Be5 {[%emt 0:00:12]} 31. Kg2 {[%emt 0:00:17]} Nb8 {[%emt 0:00:09]} 32. Rxc4 {[%emt 0:00:15]} Bxd6 {[%emt 0:00:07]} 33. b4 {[%emt 0:00:04]} f5 {[%emt 0:00:11]} 34. b5 {[%emt 0:00:01]} Kd7 {[%emt 0:00:08]} 35. Nb6+ {[%emt 0:00:05]} Ke7 {[%emt 0:00:18]} 36. Rc8 {[%emt 0:00:08]} Nd7 {[%emt 0:00:05]} 37. Nd5+ {[%emt 0:00:02]} Ke8 {[%emt 0:00:01]} 38. b6 {[%emt 0:00:09]} Nb8 {[%emt 0:00:07]} 39. Be2 {[%emt 0:00:02]} Be7 {[%emt 0:00:06]} 40. Bb5+ {[%emt 0:00:01]} Kf7 {[%emt 0:00:01]} 41. Rc7 {[%emt 0:00:03]} Rxd5 {[%emt 0:00:05]} 42. Bc4 {[%emt 0:00:00]} Ke6 {[%emt 0:00:09]} 43. Bxd5+ {[%emt 0:00:02]} Kxd5 {[%emt 0:00:01]} 44. Rxe7 {[%emt 0:00:02]} Kc6 {[%emt 0:00:02]} 45. Rxh7 {[%emt 0:00:01]} Kxb6 {[%emt 0:00:01]} 46. h4 {[%emt 0:00:05]} Nc6 {[%emt 0:00:06]} 47. Kf3 {[%emt 0:00:03]} Ka7 {[%emt 0:00:03]} 48. Kf4 {[%emt 0:00:02]} Nd4 {[%emt 0:00:09]} 49. Re7 {[%emt 0:00:10]} Kb8 {[%emt 0:00:08]} 50. Rd7 {[%emt 0:00:13]} Ne6+ {[%emt 0:00:04]} 51. Ke5 {[%emt 0:00:01]} Nc5 {[%emt 0:00:01]} 52. Rg7 {[%emt 0:00:04]} f4 {[%emt 0:00:08]} 53. Rxg6 {[%emt 0:00:08]} f3 {[%emt 0:00:03]} 54. Kd4 {[%emt 0:00:10]} f2 {[%emt 0:00:13]} 55. Rf6 {[%emt 0:00:01]} Ne6+ {[%emt 0:00:01]} 56. Ke3 {[%emt 0:00:01]} Kxb7 {[%emt 0:00:07]} 57. Kxf2 {[%emt 0:00:02]} Nc5 {[%emt 0:00:02]} 58. Kf3 {[%emt 0:00:02]} Kc7 {[%emt 0:00:01]} 59. h5 {[%emt 0:00:11]} Nd7 {[%emt 0:00:12]} 60. Rf5 {[%emt 0:00:11]} Kd6 {[%emt 0:00:04]} 61. h6 {[%emt 0:00:03]} Ke6 {[%emt 0:00:04]} 62. h7 {[%emt 0:00:01]} Kxf5 {[%emt 0:00:01]} 63. h8=Q {[%emt 0:00:02]} Nf6 {[%emt 0:00:02]} 64. Qc8+ {[%emt 0:00:06]} Ke5 {[%emt 0:00:01]} 65. Qc5+ {[%emt 0:00:03]} Ke6 {[%emt 0:00:03]} 66. Kf4 {[%emt 0:00:02]} Nd5+ {[%emt 0:00:02]} 67. Ke4 {[%emt 0:00:03]} Nf6+ {[%emt 0:00:01]} 68. Kd4 {[%emt 0:00:01]} Nd7 {[%emt 0:00:02]} 69. Qc6+ {[%emt 0:00:03]} Ke7 {[%emt 0:00:02]} 70. Kd5 {[%emt 0:00:02]} Nf6+ {[%emt 0:00:03]} 71. Ke5 {[%emt 0:00:01]} Nd7+ {[%emt 0:00:01]} 72. Kf5 {[%emt 0:00:02]} Nf8 {[%emt 0:00:03]} 73. Qf6+ {[%emt 0:00:15]} Ke8 {[%emt 0:00:02]} 74. Qg7 {[%emt 0:00:03]} Nd7 {[%emt 0:00:06]} 75. Ke6 {[%emt 0:00:08]} Nf8+ {[%emt 0:00:10]} 76. Kd6 {[%emt 0:00:01]} 1-0